[Event "German Bundesliga 2023-24"]
[Site "Germany"]
[Date "2024.03.16"]
[Round "12.5"]
[White "Meier, Georg"]
[Black "Vogel, Roven"]
[Result "1-0"]
[ECO "A49"]
[WhiteElo "2628"]
[BlackElo "2471"]
[Annotator "TA"]
[PlyCount "67"]
[EventDate "2023.10.20"]
[EventType "team-tourn"]
[EventCountry "GER"]
[SourceTitle "playchess.com"]
[Source "ChessBase"]
[SourceQuality "1"]
[TimeControl "40/6000+30:3000+30"]

{[%evp 10,67,22,20,15,16,19,10,49,55,56,46,94,97,96,85,91,88,94,98,97,97,94,104,112,108,101,111,138,139,134,119,175,154,256,247,258,251,199,201,262,273,486,461,566,568,562,575,559,552,535,517,563,522,527,514,580,572,617,539]} 1. Nf3 {[%emt 0:00:04]} Nf6 {[%emt 0:00:06]} 2. g3 {[%emt 0:00:06]} g6 {[%emt 0:00:06]} 3. b3 {[%emt 0:00:37]} Bg7 {[%emt 0:00:09]} 4. Bb2 {[%emt 0:00:07]} d6 {[%emt 0:05:47][%cal Bd7d6,Bd6d5][%mdl 32]} 5. d4 {[%emt 0:00:30]} c5 {[%emt 0:01:12]} 6. Bg2 {[%emt 0:00:46]} cxd4 {[%emt 0:03:34]} 7. Nxd4 {[%emt 0:00:07]} d5 {[%emt 0:00:16]} 8. c4 {[%emt 0:02:07]} e5 {[%emt 0:03:30] The position is equal.} 9. Nc2 {[%emt 0:02:46][%csl LRd5,LRe5]} d4 {[%emt 0:12:26]} 10. e3 {[%emt 0:00:18][%cal Re3d4]} Bg4 {[%emt 0:13:04]} (10... d3 $14) 11. f3 $1 $16 {[%emt 0:12:26]} Bf5 {[%emt 0:02:27]} 12. exd4 {[%emt 0:00:53]} Bxc2 {[%emt 0:04:05]} 13. Qxc2 {[%emt 0:00:08]} exd4 {[%emt 0:00:06]} 14. Qe2+ {[%emt 0:02:06]} Kf8 {[%emt 0:00:35] [#]} 15. Na3 $1 {[%emt 0:14:16]} Qa5+ {[%emt 0:06:25]} 16. Qd2 {[%emt 0:00:09]} Qe5+ {[%emt 0:00:06] [#]} 17. Kf2 $1 {[%emt 0:22:03][%cal Oa1e1] Rae1! would now be deadly.} Nc6 {[%emt 0:02:35][%cal Of6g4]} 18. Rhe1 $36 {[%emt 0:06:06][%mdl 2048] White is on the roll.} Qf5 {[%emt 0:05:01]} 19. Kg1 {[%emt 0:00:47][%cal Ob3b4]} (19. Bxd4 $2 {too greedy.} Ng4+ 20. Kf1 Bxd4 $19 (20... Nxd4 $2 21. Kg1 $19)) 19... Rd8 {[%emt 0:04:48]} 20. Rad1 {[%emt 0:05:11]} Ne8 {[%emt 0:11:55]} (20... h5 $16) 21. Nc2 $18 {[%emt 0:09:16]} a5 {[%emt 0:03:23]} (21... d3 $16 {keeps fighting.} 22. Ba3+ Kg8) 22. f4 {[%emt 0:01:46]} d3 {[%emt 0:10:26]} 23. Ba3+ {[%emt 0:00:38] A strong pair of Bishops.} Kg8 {[%emt 0:00:35]} 24. Ne3 {[%emt 0:00:09]} Qh5 {[%emt 0:02:51]} 25. Bd5 {[%emt 0:01:03]} Bd4 $2 {[%emt 0:01:47]} (25... Nc7 {was worth a try.} 26. Qxd3 Bf6) 26. Kg2 {[%emt 0:02:37] White is clearly winning.} ({Not} 26. Qxd3 Kg7 27. Kg2 Nf6 $18) 26... Nf6 {[%emt 0:00:29]} 27. Bf3 {[%emt 0:01:16]} Bxe3 {[%emt 0:03:17]} 28. Rxe3 {[%emt 0:03:22]} Ng4 {[%emt 0:00:29]} 29. Bxg4 {[%emt 0:00:53]} (29. Rxd3 $2 {is the wrong capture.} Qxh2+ 30. Kf1 Rxd3 31. Qxh2 Nxh2+ $19 (31... Rxf3+ $2 32. Kg1 $19)) 29... Qxg4 {[%emt 0:00:02]} 30. Bb2 {[%emt 0:00:53][%cal Od2c3] Threatens to win with Qc3!} h5 {[%emt 0:02:02]} 31. Bxh8 {[%emt 0:06:38]} Kxh8 {[%emt 0:00:02]} 32. Qc3+ {[%emt 0:00:10]} Kg8 {[%emt 0:00:17]} 33. Rdxd3 {[%emt 0:00:10]} Rf8 {[%emt 0:00:41]} 34. Qf6 {[%emt 0:01:32] White took control after the opening.   Weighted Error Value: White=0.03 (flawless) /Black=0.47.  Mistake:       	---       	Black=4      Inaccurate:     	---       	Black=2      OK:         	White=14    	Black=9      Best:        	White=5     	Black=3      Strong:       	White=3     	---} 1-0

[Event "German Bundesliga 2023-24"]
[Site "Germany"]
[Date "2024.03.16"]
[Round "12.5"]
[White "Smeets, Jan"]
[Black "Lokander, Martin"]
[Result "1/2-1/2"]
[ECO "C70"]
[WhiteElo "2535"]
[BlackElo "2462"]
[Annotator "TA"]
[PlyCount "68"]
[EventDate "2023.10.20"]
[EventType "team-tourn"]
[EventCountry "GER"]
[SourceTitle "playchess.com"]
[Source "ChessBase"]
[SourceQuality "1"]
[TimeControl "40/6000+30:3000+30"]

{[%evp 9,68,41,55,62,84,83,89,78,66,58,65,20,76,58,68,65,69,63,72,29,37,39,33,38,35,40,28,31,35,33,25,49,45,48,50,37,21,23,24,20,102,115,168,164,179,163,164,87,79,97,93,4,5,6,2,0,0,0,0,0,0]} 1. e4 {[%emt 0:00:03]} e5 {[%emt 0:00:08]} 2. Nf3 {[%emt 0:00:09]} Nc6 {[%emt 0:00:04]} 3. Bb5 {[%emt 0:00:16][%cal Bf1b5,Bb5a4,Ba4b3,Bb3a2][%mdl 32]} a6 {[%emt 0:00:24]} 4. Ba4 {[%emt 0:00:05]} f5 {[%emt 0:00:14]} 5. d4 {[%emt 0:11:54]} exd4 {[%emt 0:00:20]} 6. e5 {[%emt 0:08:58][%cal Oe1g1]} (6. Nxd4 Nxd4 7. Qxd4 b5 $11) (6. exf5 Qe7+ 7. Kf1 b5 $11) 6... b5 {[%emt 0:00:10]} 7. Bb3 {[%emt 0:00:05][%cal Oe1g1][%mdl 1024] White has strong compensation.} Bb7 {[%emt 0:00:03]} 8. a4 {[%emt 0:19:56] White is more active. White is better.} (8. Nxd4 $2 {loses.} Nxd4 9. Qxd4 c5 $19) 8... Na5 {[%emt 0:00:23]} 9. Ba2 {[%emt 0:00:27]} c5 {[%emt 0:00:06]} 10. b4 {[%emt 0:20:35]} Nc6 {[%emt 0:06:18]} (10... cxb4 $11 11. axb5 (11. Qxd4 Bxf3 12. gxf3 Rc8 $15) 11... Bc5) 11. bxc5 $16 {[%emt 0:00:46]} Bxc5 {[%emt 0:00:16]} 12. O-O {[%emt 0:03:41]} Qb6 {[%emt 0:05:04]} 13. Nbd2 {[%emt 0:17:36]} Nb4 {[%emt 0:05:05]} 14. Nb3 {[%emt 0:06:36] [#] aiming for Nxc5.} Nxa2 {[%emt 0:00:49]} 15. Rxa2 {[%emt 0:00:51]} Ne7 {[%emt 0:10:49]} 16. axb5 {[%emt 0:05:46]} ({Don't play} 16. Nfxd4 b4 $11) 16... axb5 {[%emt 0:00:22][%cal Ba6b5,Bb5b4][%mdl 32]} 17. Rxa8+ {[%emt 0:00:04]} Bxa8 {[%emt 0:00:03]} 18. Nxc5 {[%emt 0:00:11]} Qxc5 {[%emt 0:00:04]} 19. Qxd4 {[%emt 0:00:06]} Qxd4 {[%emt 0:24:02]} 20. Nxd4 {[%emt 0:00:02]} b4 {[%emt 0:02:57]} 21. Bg5 {[%emt 0:07:13] Strongly threatening Ra1.} Kf7 {[%emt 0:10:10]} 22. Bxe7 {[%emt 0:01:06]} Kxe7 $14 {[%emt 0:00:05][%mdl 4096] Endgame. KRB-KRN} 23. Rb1 {[%emt 0:00:22]} Rb8 {[%emt 0:02:45]} 24. c3 {[%emt 0:02:27]} Be4 {[%emt 0:01:16]} (24... Rc8 $11 {remains equal.}) 25. Rxb4 $16 {[%emt 0:00:12]} Rc8 {[%emt 0:00:07]} (25... Ra8 $16 26. f3 Bd3) 26. f3 $18 {[%emt 0:00:30]} Bd5 {[%emt 0:03:10]} 27. Nxf5+ {[%emt 0:02:06]} Ke6 {[%emt 0:00:04]} 28. Ne3 {[%emt 0:01:10]} (28. Nxg7+ $18 Kxe5 29. f4+ Kf6 30. Nh5+ Kf7 31. Rb5) 28... Rxc3 $16 {[%emt 0:00:34]} 29. Kf2 {[%emt 0:01:05]} Kxe5 {[%emt 0:12:52] [#]} 30. Rb5 {[%emt 0:00:33]} (30. Rg4 $1 $16 {[%cal Rg4g5]} Be6 31. Rxg7) 30... Rd3 $11 {[%emt 0:00:04] The position is equal.} 31. Ke2 {[%emt 0:00:28]} Rd4 {[%emt 0:00:04]} 32. Ra5 {[%emt 0:00:32]} Ke6 {[%emt 0:00:48]} 33. Nxd5 {[%emt 0:00:15]} Rxd5 {[%emt 0:00:04]} 34. Ra8 {[%emt 0:00:13]} Rb5 {[%emt 0:00:32] Weighted Error Value: White=0.13 (very precise) /Black=0.15 (very precise) .  Mistake:       	White=2     	Black=3      Inaccurate:     	White=2     	---        OK:         	White=11    	Black=9      Best:        	White=4     	Black=4} 1/2-1/2

[Event "German Bundesliga 2023-24"]
[Site "Germany"]
[Date "2024.03.16"]
[Round "12.5"]
[White "Dgebuadze, Alexandre"]
[Black "Kramer, Julian"]
[Result "1/2-1/2"]
[ECO "C16"]
[WhiteElo "2441"]
[BlackElo "2470"]
[Annotator "TA"]
[PlyCount "85"]
[EventDate "2023.10.20"]
[EventType "team-tourn"]
[EventCountry "GER"]
[SourceTitle "playchess.com"]
[Source "ChessBase"]
[SourceQuality "1"]
[TimeControl "40/6000+30:3000+30"]

{[%evp 9,85,23,39,36,42,25,48,47,61,27,47,39,52,56,47,44,55,45,54,43,50,0,0,-31,0,0,5,-52,-52,-89,-36,-35,-19,-19,101,85,199,193,189,185,178,178,195,195,180,200,259,251,251,248,244,257,660,169,153,158,158,136,154,147,216,219,227,0,144,0,325,214,215,128,134,0,201,0,135,0,154,0]} 1. e4 {[%emt 16:30:28]} e6 {[%emt 0:00:31]} 2. d4 {[%emt 0:01:00]} d5 {[%emt 0:00:06]} 3. Nc3 {[%emt 0:00:07]} Bb4 {[%emt 0:07:26]} 4. e5 {[%emt 0:02:05]} b6 {[%emt 0:03:35]} 5. Qg4 {[%emt 0:08:05]} g6 {[%emt 0:07:39]} 6. h4 {[%emt 0:06:55]} h5 {[%emt 0:00:58]} 7. Qd1 {[%emt 0:08:24]} Ba6 {[%emt 0:01:09]} 8. Bxa6 {[%emt 0:05:24] White is slightly better.} Nxa6 {[%emt 0:08:23]} 9. Qd3 {[%emt 0:00:16]} Qc8 {[%emt 0:03:58]} 10. Nge2 {[%emt 0:00:54]} Nh6 {[%emt 0:01:31]} 11. Bg5 {[%emt 0:01:38]} Nf5 {[%emt 0:16:39]} 12. Bf6 {[%emt 0:05:57]} Rg8 {[%emt 0:02:17]} (12... Bxc3+ 13. bxc3 (13. Nxc3 Rh7 $16) 13... Rh7 14. f3 $16) 13. a3 {[%emt 0:06:25] Wards off c5} Be7 {[%emt 0:09:24]} 14. Bxe7 {[%emt 0:04:46]} Kxe7 {[%emt 0:03:02]} 15. Ng3 {[%emt 0:00:46]} (15. Qd2 $14) 15... c5 $11 {[%emt 0:02:50]} 16. Nb5 {[%emt 0:05:38] Strongly threatening Nxf5+.} Qc6 {[%emt 0:03:39]} 17. Nd6 {[%emt 0:14:37][%cal Rd6f5]} Nc7 $132 {[%emt 0:03:55][%mdl 2048] Black is not keeping still} 18. Ngxf5+ {[%emt 0:05:30]} (18. Ndxf5+ $11 exf5 19. Ne2) 18... gxf5 $15 {[%emt 0:01:05]} 19. O-O-O {[%emt 0:07:51]} c4 {[%emt 0:09:25]} ({Better is} 19... Rxg2 $17 {And now ...cxd4 would win.} 20. Qe2 Ne8 (20... Rg4 21. f3 $17) 21. Nxe8 Rxe8 22. Qxh5 cxd4) 20. Qe2 {[%emt 0:03:02]} Rg4 $1 {[%emt 0:00:32][%cal Oc7e8]} 21. f3 {[%emt 0:00:37]} Rg6 {[%emt 0:01:24]} (21... Rg3 $11) 22. g4 $1 $16 {[%emt 0:00:38] White is much more active.} hxg4 {[%emt 0:01:15]} (22... fxg4 $16 {was necessary.} 23. fxg4 Rxg4) 23. h5 $18 {[%emt 0:00:29]} gxf3 {[%emt 0:05:32]} 24. Qxf3 {[%emt 0:04:53]} Rh6 {[%emt 0:01:38]} 25. Qf4 {[%emt 0:03:36]} Rh7 {[%emt 0:00:09]} 26. Qg5+ {[%emt 0:00:23]} Kd7 {[%emt 0:00:23] [#]} 27. Nxf5 $1 {[%emt 0:00:50][%mdl 512] Hoping for Qe7+.} Rah8 {[%emt 0:00:03] Black is weak on the dark squares} (27... Re8 28. Nh6) 28. Qe7+ {[%emt 0:04:11]} Kc8 {[%emt 0:00:04]} 29. Nd6+ {[%emt 0:00:36]} Kb8 {[%emt 0:00:03]} 30. Rdg1 {[%emt 0:02:11]} c3 $2 {[%emt 0:01:02]} (30... Nb5 31. Nxb5 (31. Nxf7 c3 $11) 31... Qxb5) 31. b3 $2 {[%emt 0:01:46]} (31. Nxf7 cxb2+ 32. Kxb2 Rc8 $11) (31. Rh3 cxb2+ 32. Kxb2) 31... Nb5 {[%emt 0:00:27]} 32. Nxb5 {[%emt 0:02:25]} (32. Nxf7 Nxd4 33. Rf1 Rg8 $11) 32... Qxb5 {[%emt 0:00:03]} 33. Kb1 {[%emt 0:00:36][%cal Oh5h6]} (33. Qd6+ Kb7 $11) 33... Qe2 {[%emt 0:01:43]} 34. Qd6+ {[%emt 0:02:25]} Kb7 {[%emt 0:00:12]} (34... Ka8 $16) 35. Qd7+ {[%emt 0:00:08]} Kb8 {[%emt 0:02:52]} 36. Qd6+ {[%emt 0:01:01]} Kb7 {[%emt 0:00:05]} 37. Qd7+ $2 {[%emt 0:00:05]} (37. h6 $16) 37... Kb8 $1 {[%emt 0:00:04]} 38. Rh3 {[%emt 0:00:12]} Rg7 {[%emt 0:01:11] [#]} 39. Qd6+ {[%emt 0:00:41]} (39. Rxg7 $2 Qd1+ (39... Rxh5 40. Rg8#) 40. Ka2 Qxc2+ 41. Ka1 Qb2#) (39. Rc1 $1 $18) 39... Kb7 $16 {[%emt 0:00:23]} 40. Qd7+ {[%emt 0:00:30]} (40. Rxg7 $2 Qd1+ (40... Rxh5 41. Qd7+ Ka6 42. Qa4+ Kb7 43. Rxf7+ Kc8 44. Qe8#) 41. Ka2 Qxc2+ 42. Ka1 Qb2#) (40. Qe7+ $16 Ka8 41. Rc1 (41. Rxg7 $2 Qd1+ 42. Ka2 Qxc2+ 43. Ka1 Qb2#)) 40... Kb8 $1 $18 {[%emt 0:05:12]} 41. Qd6+ {[%emt 0:00:31]} (41. Rxg7 $2 Qd1+ (41... Rxh5 42. Rg8#) 42. Ka2 Qxc2+ 43. Ka1 Qb2#) 41... Kb7 {[%emt 0:00:22]} 42. Qd7+ {[%emt 0:02:12]} (42. Rxg7 $2 {leads to mate.} Qd1+ (42... Rxh5 43. Qd7+ Ka6 44. Qa4+ Kb7 45. Rxf7+ Kc8 46. Qe8#) 43. Ka2 Qxc2+ 44. Ka1 Qb2#) 42... Kb8 $1 {[%emt 0:02:05]} 43. Qd6+ $2 {[%emt 0:32:58] Weighted Error Value: White=0.53/Black=0.28 (precise) .  Mistake:       	White=7     	Black=5      Inaccurate:     	White=6     	Black=1      OK:         	White=10    	Black=9      Best:        	White=3     	Black=5      Strong:       	White=1     	Black=4} (43. Rxg7 $2 {is a self mate.} Qd1+ (43... Rxh5 44. Rg8#) 44. Ka2 Qxc2+ 45. Ka1 Qb2#) (43. Rc1 $16) 1/2-1/2

[Event "German Bundesliga 2023-24"]
[Site "Germany"]
[Date "2024.03.16"]
[Round "12.6"]
[White "Boensch, Uwe"]
[Black "Wagner, Dennis"]
[Result "1/2-1/2"]
[ECO "D85"]
[WhiteElo "2456"]
[BlackElo "2599"]
[Annotator "TA"]
[PlyCount "58"]
[EventDate "2023.10.20"]
[EventType "team-tourn"]
[EventCountry "GER"]
[SourceTitle "playchess.com"]
[Source "ChessBase"]
[SourceQuality "1"]
[TimeControl "40/6000+30:3000+30"]

{[%evp 20,58,0,0,0,0,0,0,0,0,0,8,0,-45,-16,-35,0,0,0,0,28,60,64,64,58,76,84,42,52,33,50,40,87,36,49,36,44,29,40,29,64]} 1. d4 {[%emt 0:00:04]} Nf6 {[%emt 0:00:06]} 2. c4 {[%emt 0:00:46]} g6 {[%emt 0:00:25]} 3. Nc3 {[%emt 0:00:18]} d5 {[%emt 0:00:05]} 4. cxd5 {[%emt 0:00:45]} Nxd5 {[%emt 0:00:05]} 5. e4 {[%emt 0:01:32]} Nxc3 {[%emt 0:00:20]} 6. bxc3 {[%emt 0:00:03]} Bg7 {[%emt 0:00:14]} 7. Be3 {[%emt 0:00:15]} c5 {[%emt 0:05:15]} 8. Qd2 {[%emt 0:00:44]} O-O {[%emt 0:10:37]} 9. Nf3 {[%emt 0:01:51]} Bg4 {[%emt 0:22:31]} 10. Ng5 {[%emt 0:01:56]} Qa5 {[%emt 0:08:49]} 11. Rc1 {[%emt 0:23:16]} cxd4 {[%emt 0:07:26]} 12. cxd4 {[%emt 0:00:10]} Qxd2+ {[%emt 0:00:05]} 13. Kxd2 {[%emt 0:00:22]} Nc6 {[%emt 0:01:49] Die Stellung ist ausgeglichen.} 14. h3 {[%emt 0:05:58]} Bc8 {[%emt 0:02:28]} 15. d5 {[%emt 0:06:10]} Rd8 $1 {[%emt 0:00:44]} 16. Kc2 {[%emt 0:07:10]} Na5 {[%emt 0:00:57]} 17. Kb1 {[%emt 0:19:01]} h6 {[%emt 0:08:50]} 18. Nf3 {[%emt 0:00:03]} e6 {[%emt 0:00:06]} 19. Bf4 {[%emt 0:01:14] [#] Schwarz muss nun Bc7 beachten.} b6 {[%emt 0:25:50]} (19... exd5 $5 20. Bc7 dxe4 21. Bxd8 Nc6 $15) 20. Bc7 {[%emt 0:05:13]} Bb7 {[%emt 0:00:20]} 21. Bxd8 {[%emt 0:01:22]} Rxd8 {[%emt 0:01:14]} 22. Bb5 {[%emt 0:07:09]} exd5 {[%emt 0:00:16]} 23. Rhd1 {[%emt 0:00:05]} a6 {[%emt 0:05:11]} 24. Bf1 {[%emt 0:00:25]} d4 {[%emt 0:02:31]} 25. Bd3 {[%emt 0:00:40]} Nc6 {[%emt 0:00:39] [#]} (25... Bc6 $14) 26. a3 {[%emt 0:01:20] Weiß steht aktiver.} (26. Bc4 $1 $16) 26... Bf8 {[%emt 0:02:37]} 27. Kb2 {[%emt 0:00:06]} Bc5 {[%emt 0:00:36]} 28. Ne1 {[%emt 0:05:43]} Ne5 {[%emt 0:00:57]} 29. f3 {[%emt 0:00:05]} g5 {[%emt 0:00:37] Gewichteter Fehlerwert: Weiß=0.12 (sehr präzise) /Schwarz=0.11 (sehr präzise) .  Fehler:       	Weiß=1     	Schwarz=1     Ungenau:       	Weiß=2     	Schwarz=4     OK:         	Weiß=7     	Schwarz=7     Bester:       	Weiß=2     	---        Stark:        	---       	Schwarz=1} 1/2-1/2

[Event "German Bundesliga 2023-24"]
[Site "Germany"]
[Date "2024.03.16"]
[Round "12.6"]
[White "Ftacnik, Lubomir"]
[Black "Vandenbussche, Thibaut"]
[Result "1/2-1/2"]
[ECO "A13"]
[WhiteElo "2455"]
[BlackElo "2434"]
[Annotator "TA"]
[PlyCount "67"]
[EventDate "2023.10.20"]
[EventType "team-tourn"]
[EventCountry "GER"]
[SourceTitle "playchess.com"]
[Source "ChessBase"]
[SourceQuality "1"]
[TimeControl "40/6000+30:3000+30"]

{[%evp 15,67,0,20,12,58,52,61,16,37,8,32,18,24,16,18,16,9,5,15,4,6,4,0,0,0,9,11,8,3,0,0,0,0,0,0,0,0,0,0,-3,0,0,0,0,0,0,0,0,0,0,0,0,6,7]} 1. c4 {[%emt 0:00:05]} e6 {[%emt 0:00:11]} 2. Nf3 {[%emt 0:00:12]} d5 {[%emt 0:00:05]} 3. g3 {[%emt 0:00:18]} Nd7 {[%emt 0:00:26]} 4. b3 {[%emt 0:04:00]} Ngf6 {[%emt 0:02:01]} 5. Bg2 {[%emt 0:00:48]} Bd6 {[%emt 0:01:32]} 6. O-O {[%emt 0:00:50]} O-O {[%emt 0:00:03]} 7. Nc3 {[%emt 0:02:10]} c6 {[%emt 0:02:06]} 8. Bb2 {[%emt 0:04:14]} Qe7 {[%emt 0:03:03]} 9. Qc2 {[%emt 0:02:29]} Ne5 {[%emt 0:20:13]} (9... e5 $11) 10. Nxe5 $14 {[%emt 0:11:22]} Bxe5 {[%emt 0:00:03]} 11. Rad1 {[%emt 0:01:09] Weiß steht etwas besser.} d4 {[%emt 0:07:41]} 12. Na4 {[%emt 0:08:11]} Nd7 {[%emt 0:06:57][%cal Bf6d7,Bd7b6,Bb6c8,Bc8e7][%mdl 32]} 13. e3 {[%emt 0:03:26]} dxe3 {[%emt 0:02:51]} 14. dxe3 {[%emt 0:06:01][%cal Od1d7] [#] Rxd7! wäre nun fies.} Bxb2 {[%emt 0:00:02] Die Stellung ist ausgeglichen.} 15. Qxb2 {[%emt 0:01:02]} e5 {[%emt 0:00:58] Pariert Qd4.} 16. Qd2 {[%emt 0:04:57]} Nb6 {[%emt 0:02:30]} 17. Nc3 {[%emt 0:08:08]} Bg4 {[%emt 0:01:30][%cal Oa8d8] [#] Weiss muss nun ...Rad8! beachten.} 18. Qd6 {[%emt 0:00:47]} Qxd6 {[%emt 0:17:15]} 19. Rxd6 {[%emt 0:00:05]} Rad8 {[%emt 0:00:37]} 20. Ne4 {[%emt 0:04:31]} Nc8 {[%emt 0:00:19]} 21. Rxd8 {[%emt 0:01:36]} Rxd8 {[%emt 0:00:02]} 22. h3 {[%emt 0:07:39]} Bf5 {[%emt 0:07:24]} 23. Nc5 {[%emt 0:05:14]} b6 {[%emt 0:04:53]} 24. g4 {[%emt 0:02:09]} bxc5 {[%emt 0:02:50]} 25. gxf5 $11 {[%emt 0:00:07][%mdl 4096] Endspiel. KRB-KRN} Ne7 {[%emt 0:00:57]} 26. Rb1 {[%emt 0:04:30]} a5 {[%emt 0:04:12]} 27. a3 {[%emt 0:02:52]} Kf8 {[%emt 0:06:53]} 28. Be4 {[%emt 0:03:24]} g6 {[%emt 0:09:09]} 29. f6 {[%emt 0:05:56]} Ng8 {[%emt 0:00:01]} 30. Bxc6 {[%emt 0:00:19]} Nxf6 {[%emt 0:00:38]} 31. b4 {[%emt 0:00:51]} axb4 {[%emt 0:00:49]} 32. axb4 {[%emt 0:00:14]} cxb4 {[%emt 0:00:03]} 33. Rxb4 {[%emt 0:00:18]} Ke7 {[%emt 0:01:04]} 34. Rb7+ {[%emt 0:06:27] Gewichteter Fehlerwert: Weiß=0.06 (makellos) /Schwarz=0.06 (makellos) .  Fehler:       	---       	Schwarz=1     Ungenau:       	Weiß=2     	---        OK:         	Weiß=12    	Schwarz=12    Bester:       	---       	Schwarz=1} 1/2-1/2

[Event "German Bundesliga 2023-24"]
[Site "Germany"]
[Date "2024.03.16"]
[Round "12.6"]
[White "Kurmann, Oliver"]
[Black "Nikolic, Predrag"]
[Result "1/2-1/2"]
[ECO "B06"]
[WhiteElo "2424"]
[BlackElo "2531"]
[Annotator "TA"]
[PlyCount "82"]
[EventDate "2023.10.20"]
[EventType "team-tourn"]
[EventCountry "GER"]
[SourceTitle "playchess.com"]
[Source "ChessBase"]
[SourceQuality "1"]
[TimeControl "40/6000+30:3000+30"]

{[%evp 9,82,46,44,39,49,41,33,23,67,30,45,41,45,29,38,35,33,41,35,41,54,17,24,16,20,10,9,0,7,0,0,-12,-7,-22,-7,-18,-29,-17,0,0,-6,-82,-89,-84,-7,-7,0,-55,-34,-104,0,0,0,0,29,24,29,11,2,0,0,0,34,31,34,0,0,0,0,0,0,0,0,0,0]} 1. e4 {[%emt 0:00:03]} c6 {[%emt 0:00:08]} 2. Nf3 {[%emt 0:04:36]} g6 {[%emt 0:00:51]} 3. d4 {[%emt 0:00:24]} Bg7 {[%emt 0:00:05]} 4. h3 {[%emt 0:01:25]} d6 {[%emt 0:00:24]} 5. Bd3 {[%emt 0:00:18]} Nf6 {[%emt 0:00:43]} 6. O-O {[%emt 0:00:27]} O-O {[%emt 0:00:07]} 7. Re1 {[%emt 0:00:46]} Nbd7 {[%emt 0:02:09]} 8. Nbd2 {[%emt 0:06:35] White is slightly better.} b5 {[%emt 0:04:37]} 9. c3 {[%emt 0:06:15]} Nb6 {[%emt 0:00:45]} 10. Nf1 {[%emt 0:12:16]} a6 {[%emt 0:00:46]} 11. Ng3 {[%emt 0:01:50]} Qc7 {[%emt 0:00:30]} 12. Be3 {[%emt 0:06:34]} c5 {[%emt 0:05:04]} 13. Qd2 {[%emt 0:01:17]} e5 {[%emt 0:00:17]} 14. Bh6 {[%emt 0:03:22]} Ne8 {[%emt 0:04:37]} 15. Bxg7 {[%emt 0:12:02]} Nxg7 {[%emt 0:01:58]} 16. Rad1 {[%emt 0:19:33]} Be6 {[%emt 0:05:11]} 17. Bb1 {[%emt 0:02:12]} f6 {[%emt 0:04:46]} 18. Nh2 {[%emt 0:02:33]} Rad8 {[%emt 0:01:51]} 19. b3 {[%emt 0:06:58]} c4 {[%emt 0:04:22]} 20. b4 {[%emt 0:02:35]} d5 {[%emt 0:10:57]} 21. exd5 {[%emt 0:02:32]} Nxd5 {[%emt 0:05:22]} (21... Bxd5 {is more complex.} 22. dxe5 Bf3 23. Nxf3 Rxd2 24. Rxd2 Rd8) 22. Nf3 {[%emt 0:01:36][%cal Rd4e5]} Nf4 {[%emt 0:02:24]} 23. Qe3 {[%emt 0:00:42][%cal Rd4e5]} Bd5 {[%emt 0:05:56]} 24. dxe5 {[%emt 0:04:58]} fxe5 {[%emt 0:00:24]} 25. Ne4 {[%emt 0:00:55]} (25. Be4 $11) 25... Nf5 $17 {[%emt 0:02:00]} 26. Qc1 {[%emt 0:00:09]} Nd6 {[%emt 0:07:19]} (26... Qg7 $17 {[%cal Og6g5] And now ...g5! would win.} 27. Kh2 Qh6) 27. Qe3 $1 $11 {[%emt 0:04:45]} (27. Nxe5 Rde8 28. Nc5 (28. Nxd6 $2 Qxd6 29. Ng4 Rxe1+ 30. Rxe1 Bxg2 $19) 28... Qd8 $15 (28... Bxg2 29. Ncd7 $11)) 27... Nf5 {[%emt 0:12:02]} (27... Bxe4 $11 28. Bxe4 Nxe4 29. Rxd8 (29. Qxe4 Nd3 $15) 29... Qxd8 30. Qxe4 Qd3) 28. Qc1 $1 $15 {[%emt 0:00:02]} Kg7 {[%emt 0:00:11]} 29. g3 {[%emt 0:02:26]} (29. Bc2 $15) 29... Nd3 {[%emt 0:03:31]} (29... Nxh3+ $17 30. Kg2 Qc8 31. Rxd5 Rxd5) 30. Bxd3 $11 {[%emt 0:00:20]} cxd3 {[%emt 0:00:05]} 31. Nc5 {[%emt 0:04:52] Excellent horsemanship.} Nxg3 {[%emt 0:08:44]} (31... Bxf3 $2 32. Ne6+ (32. Rxd3 $2 Qc6 $19) 32... Kf6 33. Nxc7 $18) 32. Rxd3 {[%emt 0:00:08]} (32. Ng5 $2 Ne2+ (32... Rxf2 $2 33. Kxf2 Rf8+ 34. Kg1 $18) 33. Rxe2 dxe2 $19) 32... Qf7 {[%emt 0:00:06]} 33. fxg3 {[%emt 0:00:40]} (33. Nxe5 $2 Qxf2#) (33. Qe3 {feels hotter.} Bxf3 34. Qxe5+ Kg8 35. Rxd8 Rxd8 36. fxg3 Qxa2 37. Qe6+) 33... Bxf3 {[%emt 0:00:08]} 34. Rxd8 {[%emt 0:00:41]} Rxd8 {[%emt 0:00:31]} 35. Qe3 {[%emt 0:00:33] [#] Rf1 is the strong threat.} Kg8 {[%emt 0:05:44]} 36. Rf1 {[%emt 0:00:32]} (36. Nxa6 e4 37. Qb6 Rc8 $17) (36. Qxe5 {simplifies} Qxa2 37. Qe6+ Qxe6 38. Rxe6 Rd2 39. Re3) 36... Rf8 $1 {[%emt 0:02:25]} 37. Qxe5 {[%emt 0:00:02]} ({And not} 37. Nxa6 e4 38. Nc5 Qxa2 $17) 37... Qxa2 {[%emt 0:00:37][%csl Gf3][%cal Ra2g2] The position is equal.} 38. Qe6+ {[%emt 0:00:43]} Qxe6 {[%emt 0:00:04]} 39. Nxe6 {[%emt 0:00:02]} Re8 {[%emt 0:00:10]} 40. Rxf3 {[%emt 0:01:08]} Rxe6 {[%emt 0:00:04]} 41. Kf2 {[%emt 0:50:36]} Kg7 {[%emt 0:05:29] Weighted Error Value: White=0.11 (very precise) /Black=0.16 (very precise) .  Mistake:       	White=2     	Black=3      Inaccurate:     	White=3     	Black=3      OK:         	White=11    	Black=15     Best:        	White=1     	Black=2      Strong:       	White=2     	Black=1} 1/2-1/2